bitfinex/quotes_ETHUSD_20260126
["timestamp","ask_amount","ask_price","bid_price","bid_amount"]
[1769446492022,2.20669128,2915.7,2914.2,1.09143265]
[1769446492210,2.20669128,2915.7,2914.2,0.2335703]
[1769446494243,2.20669128,2915.6,2914.2,0.2335703]
[1769446494418,2.20669128,2915.6,2914.3,0.18104674]
[1769446494419,0.30641253,2915.5,2914.3,0.18104674]
[1769446495607,0.30641253,2915.5,2914.4,2.68278964]
[1769446496704,0.30184864,2916.0,2914.8,2.44921934]
[1769446496904,0.30184864,2916.0,2915.1,0.01716532]
[1769446497142,2.20669128,2916.2,2915.1,0.01716532]
[1769446497143,2.20669128,2916.5,2915.1,0.2335703]
[1769446497344,2.20669128,2916.5,2915.1,2.68278964]
[1769446498339,0.85916631,2916.6,2915.1,0.2335703]
[1769446498340,0.002,2915.6,2915.1,0.2335703]
[1769446498511,0.002,2915.6,2915.0,0.2335703]
[1769446498907,0.002,2915.6,2914.9,0.2335703]
[1769446499108,0.002,2915.6,2915.0,0.26827896]
[1769446499520,0.002,2915.6,2914.9,0.2335703]
[1769446499940,0.002,2915.6,2914.8,1.09126077]
[1769446500241,0.002,2915.6,2914.8,0.2335703]
[1769446500444,0.002,2915.6,2914.5,2.43205402]
[1769446500744,0.002,2915.6,2914.4,0.85878267]
[1769446501043,0.22306913,2915.6,2914.5,0.51901582]
[1769446501226,2.42976041,2915.6,2914.5,0.51901582]
[1769446501414,2.42976041,2915.6,2914.4,0.001]
[1769446502657,2.20669128,2915.4,2914.4,0.001]
[1769446503935,2.20669128,2915.4,2913.7,0.001]
[1769446504241,2.20669128,2915.0,2913.7,0.001]
[1769446504571,2.20669128,2914.8,2913.7,0.001]
[1769446504929,2.20669128,2914.6,2913.7,0.001]
[1769446505133,2.20669128,2914.6,2913.5,0.001]
[1769446505400,2.20669128,2914.6,2913.3,0.001]
[1769446506028,2.20669128,2913.9,2913.3,0.001]
[1769446506280,2.2238566,2913.4,2911.6,2.43205402]
[1769446506770,2.2238566,2913.4,2910.9,3.45247131]
[1769446506771,2.2238566,2913.4,2911.4,0.719]
[1769446507088,2.20669128,2913.2,2911.4,0.85868874]
[1769446507260,2.20669128,2913.4,2911.5,2.43205402]
[1769446507557,2.20669128,2913.4,2911.6,0.719]
[1769446507746,2.20669128,2913.2,2911.7,0.5486757]
[1769446508060,2.20669128,2913.2,2911.7,0.3151054]
[1769446508533,2.20669128,2913.2,2911.4,0.85869229]
[1769446508723,2.20669128,2913.2,2911.4,1.09226197]
[1769446508929,2.20669128,2913.0,2911.4,0.719]
[1769446509180,2.20669128,2913.0,2911.4,0.8586892]
[1769446509380,2.20669128,2913.0,2911.4,0.85868002]
[1769446509538,2.20669128,2912.8,2911.4,0.50125781]
[1769446509738,2.20669128,2912.8,2911.2,0.719]
[1769446509945,2.20669128,2912.8,2911.2,0.85873046]
[1769446510241,2.20669128,2912.8,2911.1,3.15105402]
[1769446510640,2.20669128,2912.8,2911.2,1.09230162]
[1769446510868,2.20669128,2912.8,2911.2,3.66854966]
[1769446511068,2.20669128,2912.6,2911.3,0.68196037]
[1769446511446,2.20669128,2912.6,2911.6,0.001]
[1769446512160,2.20669128,2912.5,2911.6,0.001]
[1769446513672,2.20669128,2913.1,2911.6,0.001]
[1769446514875,2.20669128,2913.1,2911.6,2.43305402]
[1769446515250,2.20669128,2913.1,2911.7,0.85860493]
[1769446515964,0.30647942,2913.3,2911.8,2.66562432]
[1769446516163,2.20669128,2913.9,2912.0,2.66562432]
[1769446516363,2.20669128,2913.9,2912.2,0.2335703]
[1769446516364,2.20669128,2913.8,2912.2,0.2335703]
[1769446516750,2.20669128,2913.8,2912.2,2.66562432]
[1769446517256,2.20669128,2914.2,2912.4,2.43205402]
[1769446517460,2.20669128,2914.0,2912.5,0.32904821]
[1769446517775,2.20669128,2914.0,2912.1,0.85847176]
[1769446517776,2.2238566,2914.0,2912.1,0.85847176]
[1769446517980,2.2238566,2914.0,2912.2,0.85845339]
[1769446518190,2.2238566,2914.0,2912.0,0.2335703]
[1769446518367,2.20669128,2912.4,2910.3,2.61117078]
[1769446518551,2.24025893,2912.2,2910.4,0.26111708]
[1769446518755,0.22238566,2912.3,2910.7,2.37651829]
[1769446519063,2.24025893,2912.6,2910.7,3.2354033]
[1769446519272,2.24025893,2912.6,2911.0,0.8588114]
[1769446519766,2.24025893,2912.6,2911.0,3.16037661]
[1769446519961,3.09860076,2912.6,2911.1,0.2335703]
[1769446520160,2.28092003,2912.5,2911.0,0.2335703]
[1769446520364,2.28092003,2912.3,2910.7,0.719]
[1769446520681,2.28092003,2912.3,2910.5,0.719]
[1769446520981,2.28092003,2912.3,2910.6,0.2335703]
[1769446521168,2.28092003,2912.3,2910.5,4.1548356]
[1769446521374,2.28092003,2912.1,2910.6,0.85890906]
[1769446521570,2.59485778,2912.0,2910.7,0.50137447]
[1769446521774,2.59485778,2912.0,2910.5,1.57794046]
[1769446522084,2.59485778,2912.0,2910.6,0.2335703]
[1769446522486,2.59485778,2912.0,2910.5,1.57794046]
[1769446522487,2.59485778,2912.0,2910.4,0.26111708]
[1769446522856,2.59485778,2912.0,2910.5,0.85893784]
[1769446523565,2.28092003,2911.9,2910.9,0.001]
[1769446527673,2.28092003,2911.8,2910.9,0.001]
[1769446527891,3.13949868,2911.8,2910.9,0.001]
[1769446528186,2.28092003,2911.7,2910.9,0.001]
[1769446528389,2.5948699,2911.6,2910.9,0.001]
[1769446530681,0.31394987,2911.6,2910.9,0.001]
[1769446530878,2.28092003,2911.9,2910.9,0.001]
[1769446533200,2.28092003,2912.4,2910.9,2.30256521]
[1769446534056,2.28092003,2912.4,2910.9,3.16138686]
[1769446534480,2.28092003,2912.4,2911.0,0.2335703]
[1769446534787,0.228092,2912.3,2911.1,0.33949572]
[1769446534992,2.50901203,2912.3,2911.1,0.33949572]
[1769446535295,0.002,2912.1,2911.1,0.33949572]
[1769446536271,0.002,2912.1,2911.1,0.85877312]
[1769446537602,0.002,2912.1,2911.2,2.53513551]
[1769446538167,0.002,2912.1,2911.3,0.8587229]
[1769446538998,0.002,2912.1,2911.2,3.39387487]
[1769446539972,0.002,2912.1,2911.2,3.39388723]
[1769446540206,0.002,2912.1,2911.2,4.14879604]
[1769446540610,0.002,2912.1,2911.2,3.29004432]
[1769446540890,2.28292003,2912.1,2910.9,0.001]
[1769446541292,2.28292003,2912.1,2910.9,0.85981601]
[1769446541676,2.28292003,2912.1,2910.9,0.001]
[1769446542186,2.28092003,2912.0,2910.9,0.001]
[1769446542386,0.31414352,2911.9,2910.9,0.001]
[1769446543882,0.31414352,2911.9,2910.4,4.1559527]
[1769446543883,2.29808535,2911.8,2909.6,2.30156521]
[1769446544095,2.29808535,2911.8,2909.4,0.85928075]
[1769446544096,2.28092003,2910.9,2909.4,0.85928075]
[1769446544308,2.28092003,2910.9,2909.2,1.57933573]
[1769446544309,2.28092003,2910.7,2909.2,1.57933573]
[1769446544627,2.28092003,2910.7,2909.3,0.2335703]
[1769446544778,2.28092003,2910.7,2909.2,1.57933573]
[1769446544976,0.22980854,2910.8,2909.2,1.57933573]
[1769446544977,0.22980854,2910.8,2909.3,2.30156521]
[1769446545292,2.28092003,2911.1,2909.5,2.30156521]
[1769446545710,2.28092003,2911.1,2909.6,2.53513551]
[1769446546309,2.28092003,2911.1,2909.8,0.2335703]
[1769446546902,2.28092003,2911.1,2909.7,0.8591951]
[1769446546903,2.28092003,2911.1,2909.7,0.2335703]
[1769446547102,3.13970462,2911.1,2909.7,0.2335703]
[1769446547302,2.59489049,2911.0,2909.4,0.38809009]
[1769446547612,2.59489049,2911.0,2909.5,0.85922831]
[1769446547981,2.59489049,2911.0,2909.6,0.85922152]
[1769446548310,2.59489049,2911.0,2909.5,1.09282446]
[1769446549118,2.36855227,2910.9,2910.0,0.001]
[1769446549421,2.63680454,2910.8,2910.0,0.001]
[1769446551617,2.36855227,2910.7,2910.0,0.001]
[1769446553204,0.26825227,2910.8,2910.0,0.001]
[1769446553404,2.36855227,2911.2,2910.0,0.001]
[1769446554383,2.36855227,2911.0,2910.0,0.001]
[1769446554620,2.36855227,2910.9,2910.0,0.001]
[1769446555125,2.38571759,2910.9,2910.0,0.001]
[1769446555330,2.36855227,2910.4,2910.0,0.001]
[1769446555689,2.36855227,2910.4,2909.0,0.85938951]
[1769446556109,2.36855227,2910.4,2908.7,1.57947073]
[1769446556321,2.36855227,2910.4,2908.8,0.85945984]
[1769446556521,2.36855227,2910.4,2908.8,0.85943473]
[1769446556699,2.60712403,2910.3,2908.8,1.5918377]
[1769446557019,2.60712403,2910.3,2908.8,1.59186385]
[1769446558023,2.60712403,2910.3,2908.8,3.89841443]
[1769446558417,2.60712403,2910.3,2908.9,2.54012088]
[1769446558815,2.60712403,2910.3,2909.0,0.85940185]
[1769446559018,0.2607124,2910.2,2909.0,1.61636632]
[1769446559525,0.2607124,2910.2,2909.0,3.9229169]
[1769446559733,0.2607124,2910.2,2909.1,2.54012088]
[1769446559903,2.36855227,2910.6,2909.1,2.54012088]
[1769446560505,2.36855227,2911.0,2909.4,2.30655058]
[1769446561005,2.36855227,2911.0,2909.6,2.30655058]
[1769446561328,2.36855227,2911.0,2909.4,3.43709272]
[1769446561329,2.36855227,2910.9,2909.4,1.09283348]
[1769446561694,2.36855227,2910.9,2909.6,2.30655058]
[1769446561902,2.69128608,2910.9,2909.7,0.23065506]
[1769446562498,3.45316474,2912.1,2909.7,0.23065506]
[1769446562499,0.002,2911.9,2910.5,0.2335703]
[1769446562719,0.002,2911.9,2910.6,2.30655058]
[1769446562925,0.002,2911.9,2910.7,0.85889992]
[1769446563095,0.002,2911.9,2910.6,2.30655058]
[1769446563096,0.002,2911.9,2910.6,3.16546021]
[1769446563298,0.002,2911.9,2910.5,0.9535703]
[1769446563299,2.37055227,2911.9,2910.5,0.9535703]
[1769446563537,2.6056075,2911.8,2910.5,1.36547982]
[1769446563695,2.36855227,2911.6,2910.0,3.43639672]
[1769446563898,0.23705523,2911.8,2910.5,0.85895487]
[1769446564211,0.23705523,2911.8,2910.4,2.54012088]
[1769446564839,2.36855227,2911.7,2910.4,0.2335703]
[1769446565003,2.36855227,2911.7,2909.8,4.15762087]
[1769446565004,2.36855227,2911.6,2909.8,0.2345703]
[1769446565205,2.36855227,2911.4,2910.1,0.85906008]
[1769446565736,0.32443256,2911.5,2910.4,0.85897169]
[1769446565927,0.23705523,2911.8,2910.4,0.85897169]
[1769446566532,0.23705523,2911.8,2910.5,0.2335703]
[1769446566738,0.23705523,2911.8,2910.4,0.85897169]
[1769446566926,0.23705523,2911.8,2910.4,1.09255343]
[1769446566927,2.6056075,2911.8,2910.4,1.09255343]
[1769446567124,0.26076075,2911.7,2910.5,0.3399104]
[1769446567634,0.01716532,2911.6,2910.1,0.85905898]
[1769446567843,0.01716532,2911.6,2910.0,1.09266557]
[1769446567844,2.36855227,2911.5,2910.0,1.09266557]
[1769446568011,2.36855227,2911.5,2910.4,0.85898637]
[1769446568335,2.36855227,2911.5,2910.3,0.85899721]
[1769446568534,2.6054075,2911.4,2910.1,0.8590578]
[1769446568736,2.6054075,2911.4,2909.9,0.27717759]
[1769446568911,2.36855227,2911.2,2909.8,0.001]
[1769446569099,2.36855227,2911.1,2909.8,0.001]
[1769446570732,0.23685523,2911.4,2909.8,2.30755058]
[1769446570928,0.23685523,2911.4,2909.9,0.23075506]
[1769446570929,0.26225728,2911.3,2909.9,0.23075506]
[1769446571135,2.36855227,2911.2,2909.9,0.23075506]
[1769446571336,2.36855227,2911.2,2909.9,1.08988748]
[1769446571727,2.36855227,2911.2,2909.9,0.23075506]
[1769446571927,2.36855227,2911.2,2909.9,1.08989094]
[1769446572127,0.26308096,2911.1,2909.9,1.08989094]
[1769446572931,0.26308096,2911.1,2909.9,0.23075506]
[1769446573421,0.26308096,2911.1,2909.8,0.001]
[1769446573422,2.63163323,2911.1,2909.8,0.001]
[1769446574065,2.63163323,2911.1,2909.8,0.2345703]
[1769446574225,2.38571759,2911.0,2909.8,0.001]
[1769446574425,2.36855227,2910.8,2909.8,0.001]
[1769446575059,2.36855227,2910.6,2909.8,0.001]
[1769446575865,2.36855227,2910.7,2909.8,0.001]
[1769446576458,0.35075806,2910.9,2909.8,0.001]
[1769446578130,0.35075806,2910.9,2909.9,0.2335703]
[1769446578334,0.002,2911.2,2910.0,0.25411209]
[1769446579830,0.002,2911.2,2910.1,0.859077]
[1769446580267,0.002,2911.2,2910.0,0.25411209]
[1769446580466,0.002,2911.2,2910.0,1.1132114]
[1769446580767,0.002,2911.2,2910.1,2.53215221]
[1769446580930,0.002,2911.2,2910.2,0.36453636]
[1769446581844,0.002,2911.2,2910.3,0.85901797]
[1769446582041,0.002,2911.2,2910.2,1.22356217]
[1769446582986,0.002,2911.2,2910.2,3.52214408]
[1769446584801,0.002,2911.4,2910.3,2.53215221]
[1769446585094,0.002,2911.4,2910.2,1.22356217]
[1769446585095,0.002,2911.4,2910.5,0.2335703]
[1769446585254,0.002,2911.4,2910.5,2.53215221]
[1769446586668,0.002,2911.4,2910.6,0.85892943]
[1769446586863,0.002,2911.4,2910.5,1.09250829]
[1769446587269,0.002,2911.4,2910.5,3.3910902]
[1769446587556,0.002,2911.4,2910.7,0.2335703]
[1769446588166,0.002,2911.0,2910.7,0.2335703]
[1769446588488,0.002,2911.2,2910.7,0.2335703]
[1769446588656,0.002,2911.2,2910.7,1.09246591]
[1769446589186,0.002,2911.2,2910.6,1.54327573]
[1769446589396,0.002,2911.2,2910.7,1.4775453]
[1769446590394,0.002,2911.2,2910.7,1.4775479]
[1769446590861,0.002,2911.4,2910.7,1.4775479]
[1769446591058,0.002,2911.4,2909.8,0.001]
[1769446591059,2.15316148,2910.9,2909.8,0.001]
[1769446591258,2.15316148,2910.7,2909.8,0.001]
[1769446592008,2.15316148,2911.3,2909.8,0.001]
[1769446592306,2.15316148,2911.1,2909.8,0.001]
[1769446592472,2.15316148,2910.9,2909.8,0.001]
[1769446594584,2.15316148,2910.7,2909.8,0.001]
[1769446594774,2.15316148,2910.6,2909.8,0.001]
[1769446599105,2.15316148,2910.6,2909.0,0.2335703]
[1769446599309,2.15316148,2910.6,2907.8,0.17919209]
[1769446599311,0.01716532,2907.9,2907.8,0.17919209]
[1769446599530,0.01716532,2907.9,2906.4,2.29858191]
[1769446599531,0.01716532,2907.7,2906.4,2.29858191]
[1769446599703,2.15316148,2907.9,2905.5,2.29858191]
[1769446600009,2.33227783,2908.4,2906.1,2.29858191]
[1769446600183,0.17911635,2908.4,2906.1,2.29858191]
[1769446600374,2.15316148,2908.3,2906.3,2.29858191]
[1769446600911,0.17911635,2908.4,2906.3,2.29858191]
[1769446601288,0.01716532,2908.3,2908.0,0.001]
[1769446602409,0.25382617,2908.3,2908.0,0.001]
[1769446603530,0.17911635,2908.4,2908.0,0.001]
[1769446604324,0.10553148,2908.4,2908.0,0.001]
[1769446604609,0.06639146,2908.4,2908.0,0.001]
[1769446604810,0.0008,2909.5,2908.0,0.001]
[1769446604811,0.86006567,2909.5,2908.0,0.001]
[1769446604986,0.86006567,2909.5,2908.1,0.72]
[1769446604987,2.1703268,2909.4,2908.1,0.72]
[1769446605193,2.1703268,2909.4,2908.0,0.001]
[1769446605194,0.30303925,2909.3,2908.2,0.72]
[1769446605587,0.01716532,2909.2,2908.3,0.72]
[1769446609744,0.01716532,2909.2,2908.4,0.72]
[1769446610036,0.01716532,2909.4,2908.4,0.72]
[1769446610202,0.01716532,2909.2,2908.4,0.72]
[1769446611722,0.0008,2909.5,2908.4,0.72]
[1769446612099,0.0008,2909.5,2908.0,2.2208864]
[1769446612100,0.0008,2909.5,2908.5,0.72]
[1769446612299,0.0008,2909.5,2908.6,0.72]
[1769446612991,0.0008,2909.5,2908.6,0.721]
[1769446613186,0.0008,2909.5,2908.7,0.2335703]
[1769446613618,0.0008,2909.5,2908.6,0.721]
[1769446613619,0.0008,2909.5,2908.8,0.72]
[1769446613793,0.0008,2909.5,2908.9,0.72]
[1769446614185,5.73993525,2910.2,2908.9,0.72]
[1769446614186,2.30372966,2910.2,2908.9,0.72]
[1769446614414,0.23037297,2910.1,2908.9,0.72]
[1769446614752,2.55126795,2910.1,2909.0,0.72]
[1769446615116,2.53410263,2910.1,2909.0,0.72]
[1769446615322,2.53410263,2910.1,2908.6,2.2208864]
[1769446615578,2.55126795,2910.1,2908.7,0.72]
[1769446615753,2.64476247,2910.0,2908.8,0.29408864]
[1769446617170,0.34103281,2910.0,2908.8,0.29408864]
[1769446617365,0.8762161,2910.2,2908.9,0.2335703]
[1769446617665,2.30372966,2910.0,2909.0,0.72]
[1769446618220,0.87622558,2910.2,2909.0,0.72]
[1769446618221,0.85906995,2910.2,2909.0,0.72]
[1769446618439,0.01716532,2910.1,2909.1,0.72]
[1769446618662,0.31799649,2910.0,2909.1,0.72]
[1769446619825,0.01716532,2910.3,2909.1,0.72]
[1769446620127,0.0008,2910.4,2909.3,0.2335703]
[1769446620446,0.0008,2910.4,2909.5,0.2335703]
[1769446620627,0.0008,2910.4,2909.3,2.2198864]
[1769446620939,0.0008,2910.4,2909.6,0.72]
[1769446621142,2.30452966,2910.4,2909.0,0.2335703]
[1769446621318,2.30372966,2910.2,2908.6,0.2345703]
[1769446621522,2.30372966,2910.2,2908.8,0.2335703]
[1769446622119,2.30372966,2910.2,2908.6,0.001]
[1769446622120,0.01716532,2909.2,2908.6,0.001]
[1769446622338,0.01716532,2909.7,2908.6,0.001]
[1769446622339,2.32089498,2909.4,2908.6,0.001]
[1769446622534,2.30372966,2909.4,2908.6,0.001]
[1769446622844,0.23037297,2909.3,2908.6,0.001]
[1769446623325,0.01716532,2909.9,2908.6,0.001]
[1769446623326,2.30372966,2909.9,2908.6,0.001]
[1769446623726,2.30372966,2909.8,2908.6,0.001]
[1769446623930,2.32089498,2909.8,2908.6,0.001]
[1769446624128,2.30372966,2909.5,2908.6,0.001]
[1769446625027,2.30372966,2908.9,2908.0,0.001]
[1769446625227,0.01716532,2909.0,2908.0,0.001]
[1769446625228,2.53581916,2908.8,2908.0,0.001]
[1769446626057,2.30372966,2908.7,2908.0,0.001]
[1769446626845,2.30372966,2908.7,2907.0,3.31344192]
[1769446626846,2.32089498,2908.5,2906.6,2.3478864]
[1769446627051,2.32089498,2908.5,2906.7,0.72]
[1769446627224,2.32089498,2908.5,2906.8,0.72]
[1769446627428,2.53581916,2908.4,2906.8,0.72]
[1769446628056,2.53581916,2908.4,2906.9,0.2335703]
[1769446628265,2.53581916,2908.4,2906.9,0.9535703]
[1769446630154,3.39540663,2908.4,2906.9,0.9535703]
[1769446630346,2.53581916,2908.4,2906.9,0.2335703]
[1769446630666,3.39539922,2908.4,2906.9,0.9535703]
[1769446630847,0.33953992,2908.3,2906.9,0.9535703]
[1769446631172,2.30372966,2908.2,2906.7,3.1734567]
[1769446632171,2.30372966,2908.3,2906.4,2.2198864]
[1769446632334,0.85957915,2908.4,2906.6,0.2335703]
[1769446632335,2.30372966,2908.1,2906.6,0.2335703]
[1769446632534,2.30372966,2908.1,2906.5,0.22198864]
[1769446632739,2.30372966,2908.1,2906.7,0.72]
[1769446632935,2.30372966,2908.1,2906.5,0.22198864]
[1769446633269,2.30372966,2907.9,2906.3,0.72]
[1769446633949,2.30372966,2907.9,2906.1,2.2198864]
[1769446634271,2.30372966,2907.7,2905.7,2.2198864]
[1769446634647,2.30372966,2907.5,2905.8,0.72]
[1769446634846,2.30372966,2907.5,2905.8,2.9398864]
[1769446635051,2.53581916,2907.4,2905.9,0.61359643]
[1769446636371,2.53581916,2907.4,2906.5,0.001]
[1769446637182,0.2320895,2907.4,2906.5,0.001]
[1769446637338,2.30372966,2907.7,2906.5,0.001]
[1769446638575,3.16352357,2907.7,2906.5,0.001]
[1769446638872,2.30372966,2907.7,2906.5,0.001]
[1769446639667,2.2955735,2908.1,2906.5,2.35508964]
[1769446639970,0.31552283,2908.0,2906.6,0.23550896]
[1769446640172,2.61109633,2908.0,2906.6,0.23550896]
[1769446640470,0.85972695,2907.9,2906.6,0.23550896]
[1769446640774,2.2955735,2907.8,2906.6,0.23550896]
[1769446640969,2.2955735,2907.8,2906.5,0.001]
[1769446642168,0.31552283,2908.0,2906.6,2.35408964]
[1769446642375,2.2955735,2908.2,2906.6,3.21419777]
[1769446642580,2.2955735,2908.2,2906.6,2.35408964]
[1769446642790,2.2955735,2908.2,2906.6,3.21419954]
[1769446643083,2.2955735,2908.2,2906.6,2.35408964]
[1769446643385,0.31551854,2908.1,2906.7,0.32152179]
[1769446643687,2.61109204,2908.1,2906.7,0.32152179]
[1769446644273,2.61109204,2908.1,2906.5,0.001]
[1769446644274,2.2955735,2907.9,2906.5,0.2345703]
[1769446644865,2.2955735,2907.9,2906.5,0.001]
[1769446646391,2.2955735,2907.7,2906.5,0.001]
[1769446648393,2.2955735,2907.5,2906.5,0.001]
[1769446648960,2.2955735,2907.5,2906.7,0.002]
[1769446649163,0.31553892,2907.4,2906.7,0.002]
[1769446651283,2.2955735,2907.0,2905.2,0.002]
[1769446651483,2.2955735,2907.0,2905.3,2.35608964]
[1769446652673,2.2955735,2907.0,2905.4,3.44812233]
[1769446652875,2.2955735,2907.0,2905.6,2.35408964]
[1769446653705,2.2955735,2906.9,2905.6,0.721]
[1769446654608,3.15550142,2907.3,2905.6,3.07508964]
[1769446654769,0.31553892,2907.4,2905.9,2.58765994]
[1769446655102,2.2955735,2907.5,2905.9,2.58765994]
[1769446655990,2.2955735,2907.0,2905.3,2.35608964]
[1769446656195,2.2955735,2907.0,2905.4,2.35408964]
[1769446656783,0.8600227,2906.9,2905.4,2.35408964]
[1769446657113,2.31273882,2906.8,2905.3,0.002]
[1769446657412,2.2955735,2906.5,2905.3,0.002]
[1769446659013,3.15574415,2906.4,2905.3,0.002]
[1769446659312,2.2955735,2906.3,2905.3,0.002]
[1769446659806,2.2955735,2906.1,2905.2,0.002]
[1769446660103,0.01716532,2906.2,2903.7,2.35408964]
[1769446660104,2.2955735,2905.7,2903.7,2.35408964]
[1769446660306,2.2955735,2905.5,2903.8,3.27682964]
[1769446661101,2.2955735,2905.4,2903.8,3.27682964]
[1769446661309,2.2955735,2905.4,2903.8,4.13776897]
[1769446661506,2.2955735,2905.4,2905.3,0.001]
[1769446661710,2.2955735,2905.4,2904.1,0.002]
[1769446663504,2.2955735,2905.3,2904.1,0.002]
[1769446666297,2.2955735,2905.8,2904.1,2.35608964]
[1769446666612,3.15592417,2905.8,2904.1,2.35608964]
[1769446666809,0.31559242,2905.7,2904.2,0.23560896]
[1769446668008,0.31559242,2905.7,2904.3,2.58765994]
[1769446668394,2.2955735,2905.8,2904.3,2.58765994]
[1769446669486,2.2955735,2905.8,2904.5,2.42539503]
[1769446673283,2.2955735,2905.8,2904.7,0.002]
[1769446677391,3.09685805,2906.1,2904.7,0.002]
[1769446677605,2.2365767,2906.0,2904.7,0.002]
[1769446677914,2.2365767,2905.8,2904.7,0.22158247]
[1769446678216,2.2365767,2905.8,2904.7,0.002]
[1769446679689,0.30968466,2905.9,2904.7,2.19382473]
[1769446680186,2.2365767,2905.8,2904.7,0.002]
[1769446680385,2.2365767,2905.7,2904.7,0.002]
[1769446681318,2.2365767,2905.4,2904.1,0.002]
[1769446681485,2.2365767,2905.2,2904.1,0.002]
[1769446682631,2.2365767,2905.0,2904.1,0.002]
[1769446684598,2.2365767,2904.9,2904.1,0.002]
[1769446686920,2.2365767,2904.8,2904.1,0.002]
[1769446687322,2.2365767,2905.1,2904.1,0.002]
[1769446687528,2.58251952,2905.0,2904.1,0.002]
[1769446688722,2.2365767,2904.9,2904.1,0.002]
[1769446691040,0.2253742,2905.3,2904.1,0.002]
[1769446691041,0.001,2905.6,2904.9,0.62010361]
[1769446691188,0.001,2905.6,2904.7,2.19182473]
[1769446691523,0.001,2905.6,2904.8,0.21918247]
[1769446691723,2.2365767,2905.5,2904.1,0.2355703]
[1769446692110,0.001,2905.6,2904.3,2.42539503]
[1769446692997,0.001,2905.6,2904.5,2.19182473]
[1769446694193,0.001,2905.6,2904.6,2.42539503]
[1769446695405,0.001,2905.6,2904.7,2.19182473]
[1769446695720,0.001,2905.6,2904.8,0.32860963]
[1769446696918,0.001,2905.6,2904.8,2.52043436]
[1769446697293,0.001,2905.6,2904.8,3.38107552]
[1769446697826,0.001,2905.6,2904.8,3.38107125]
[1769446698005,0.001,2905.6,2904.9,2.19182473]
[1769446698201,2.2365767,2906.3,2905.0,2.52993185]
[1769446698507,2.2365767,2906.6,2905.0,0.33810712]
[1769446698690,2.2365767,2906.6,2904.8,1.18924652]
[1769446699228,2.30073893,2906.5,2904.8,3.42181335]
[1769446701125,2.30073893,2906.5,2904.8,0.32860963]
[1769446701308,2.30073893,2906.5,2904.6,0.2335703]
[1769446701309,2.30073893,2906.3,2904.6,1.09426684]
[1769446702123,2.30073893,2906.3,2904.5,1.09428821]
[1769446702493,2.30073893,2906.3,2904.3,0.002]
[1769446702695,2.31790425,2906.3,2904.3,0.86278937]
[1769446702890,2.30073893,2906.1,2904.3,0.86278937]
[1769446703112,2.30073893,2906.1,2904.4,0.86075631]
[1769446703528,2.30073893,2905.9,2904.3,0.2355703]
[1769446705132,2.30073893,2905.9,2904.3,0.002]
[1769446705423,3.44104277,2906.1,2904.4,2.23256683]
[1769446705424,2.61684173,2905.8,2904.4,2.23256683]
[1769446705658,2.61684173,2905.8,2904.6,2.23256683]
[1769446705659,2.30073893,2905.8,2904.6,2.23256683]
[1769446707505,2.30073893,2905.8,2904.3,1.09636291]
[1769446707705,2.30073893,2905.7,2904.3,1.09636291]
[1769446708233,2.30073893,2905.7,2904.3,3.32892974]
[1769446708622,2.30073893,2905.7,2904.3,2.46813713]
[1769446708943,2.53081282,2905.6,2904.4,0.33289374]
[1769446710531,2.53081282,2905.6,2904.5,0.86073334]
[1769446710736,2.30073893,2906.0,2904.6,2.23256683]
[1769446712705,2.30073893,2906.0,2904.8,2.23256683]
[1769446714441,2.30073893,2905.9,2904.6,3.89]
[1769446714612,2.30073893,2905.8,2904.6,3.89]
[1769446715737,2.30073893,2905.8,2904.6,4.75070196]
[1769446715936,2.30073893,2905.8,2904.7,0.4752702]
[1769446716832,2.30073893,2905.8,2904.7,1.33592388]
[1769446717358,0.86122646,2906.3,2904.8,2.46613713]
[1769446717359,0.001,2906.3,2904.8,2.46613713]
[1769446717633,0.001,2906.3,2904.9,2.24973215]
[1769446717835,0.001,2906.3,2905.1,2.23256683]
[1769446719238,2.30173893,2906.3,2905.0,0.24833025]
[1769446719445,2.30173893,2906.3,2905.0,0.8605766]
[1769446719817,2.30173893,2906.3,2905.1,0.86055383]
[1769446721149,2.30173893,2906.3,2904.7,0.4752702]
[1769446721447,2.30073893,2906.2,2904.7,1.3359378]
[1769446721644,2.30073893,2906.0,2904.8,0.52259378]
[1769446721815,2.30073893,2906.0,2904.5,0.002]
[1769446722139,2.30073893,2906.0,2904.5,0.86272337]
[1769446722345,2.30073893,2906.0,2904.5,0.86271734]
[1769446722947,2.30073893,2906.0,2904.6,0.86069925]
[1769446723115,2.30073893,2905.8,2904.5,0.86273334]
[1769446723650,2.30073893,2905.8,2904.5,0.002]
[1769446724140,2.30073893,2905.7,2904.5,0.002]
[1769446724343,2.30073893,2905.7,2904.7,0.002]
[1769446724643,2.30173893,2905.6,2904.7,0.002]
[1769446724815,0.23017389,2905.5,2904.7,0.002]
[1769446725014,2.53091282,2905.5,2904.7,0.002]
[1769446727961,3.67137988,2905.9,2904.7,0.002]
[1769446727962,2.30073893,2906.5,2904.9,2.46613713]
[1769446728141,2.30173893,2906.3,2904.9,2.23256683]
[1769446728459,2.30173893,2906.3,2905.0,0.29535668]
[1769446729426,2.30173893,2906.3,2905.1,0.86055557]
[1769446729838,0.001,2906.3,2905.1,3.22328569]
[1769446733968,2.19578506,2906.2,2905.0,0.29535668]
[1769446734187,2.19578506,2906.2,2904.8,0.01716532]
[1769446734188,2.19578506,2906.2,2902.9,2.36593012]
[1769446734189,2.19578506,2904.8,2902.9,2.36593012]
[1769446734479,2.19578506,2904.6,2903.0,0.86115939]
[1769446734644,2.19578506,2904.4,2903.1,0.86114744]
[1769446734979,2.19578506,2904.4,2903.1,0.86112797]
[1769446735327,2.19578506,2904.4,2902.9,0.86440475]
[1769446735529,2.19578506,2904.4,2902.9,0.0032]
[1769446736348,2.19578506,2904.4,2902.9,0.86440735]
[1769446736668,2.19578506,2904.2,2902.9,0.86440735]
[1769446737133,2.19578506,2904.2,2903.1,0.002]
[1769446742371,0.70983996,2908.2,2903.5,2.37989544]
[1769446742372,2.19578506,2904.8,2903.5,2.37989544]
[1769446742774,2.19578506,2905.3,2903.5,2.37989544]
[1769446743066,2.19578506,2905.1,2903.6,0.32409549]
[1769446744871,2.19578506,2905.1,2903.7,0.86097048]
[1769446745169,0.86049125,2905.4,2904.2,0.01716532]
[1769446745170,2.19578506,2905.4,2904.2,0.01716532]